Cogmind - Beta 16.1 @@@ ROGUE MODE // 2026.04.26 @ 17:59:46 Player: Bereft Result: Destroyed by G-47 Trooper with Particle Gun Performance ------------- Evolutions (2) 1000 Regions Visited (7) 1400 Robots Destroyed (52) 260 Value Destroyed (2422) 2422 Prototype IDs (1) 20 Alien Tech Used (0) 0 Bonus (828) 828 TOTAL SCORE: 5930 Bonus ------- High Alert Combat Kills 81 Follower Combat Kills 47 Entered Garrisons 200 Used RIF Installer 500 Cogmind --------- Core Integrity 0/550 Matter 147/300 Energy 265/265 System Corruption 5% Temperature Cool (51) Movement Treading (160) Location -8/Materials Parts ------- > --- POWER (2) -------- Improved Ion Engine > --- PROPULSION (2) --- Light Treads > --- UTILITY (5) ------ ECM Suite Relay Coupler [NC] (25) Relay Coupler [Behemoth] (8) > --- WEAPON (2) ------- Gauss Rifle Gauss Rifle > --- INVENTORY (5) ---- Authchip [R/Combat] Authchip [R/Combat] Relay Coupler [NC] (29) Peak State ------------ > --- POWER ------------ Light Ion Engine Improved Ion Engine > --- PROPULSION ------- Armored Huge Wheel > --- UTILITY ---------- Improved Heat Sink Light Armor Plating Relay Coupler [NC] Bomb Drone Bay > --- WEAPON ----------- Gauss Rifle Gauss Rifle > --- INVENTORY -------- Authchip [R/Combat] Authchip [R/Combat] Relay Coupler [NC] Relay Coupler [Behemoth] [Rating: 39] Favorites ----------- Power Improved Ion Engine Engine Improved Ion Engine Power Core Light Nuclear Core Propulsion Light Treads Treads Light Treads Leg Aluminum Leg Wheel Armored Huge Wheel Hover Unit Gravmag System Utility Weight Redist. System Device Weight Redist. System Storage Large Storage Unit Hackware Relay Coupler [NC] Protection Medium Reactive Plating Weapon Gauss Rifle Energy Gun Small Laser Energy Cannon Plasma Cannon Ballistic Gun Gauss Rifle Launcher Grenade Launcher Build | -11 -10 -10 -9 -9 -8 -8 -8 ------- Run | Yrd Mat Min Mat Min Mat Gar Mat Slots Evolved 4 | . . . 2 . 2 . . Power 1 | . . . . . 1 . . Propulsion . | . . . . . . . . Utility 3 | . . . 2 . 1 . . Weapon . | . . . . . . . . Parts Attached 59 | 4 3 . 14 . 9 25 4 Power 10 | 1 . . 1 . 2 5 1 Engine 8 | 1 . . 1 . 2 4 . Core 2 | . . . . . . 1 1 Reactor . | . . . . . . . . Propulsion 16 | 2 1 . 3 . 2 7 1 Treads 5 | . . . 3 . 1 . 1 Leg 9 | 2 1 . . . 1 5 . Wheel 1 | . . . . . . 1 . Hover 1 | . . . . . . 1 . Flight . | . . . . . . . . Utility 18 | 1 . . 5 . 2 8 2 Device 7 | . . . 3 . . 3 1 Storage 3 | 1 . . 1 . 1 . . Processor . | . . . . . . . . Hackware 4 | . . . . . . 3 1 Protection 4 | . . . 1 . 1 2 . Artifact . | . . . . . . . . Weapon 15 | . 2 . 5 . 3 5 . Energy Gun 1 | . 1 . . . . . . Energy Cannon 8 | . . . 3 . 3 2 . Ballistic Gun 4 | . . . 1 . . 3 . Ballistic Cannon . | . . . . . . . . Launcher 2 | . 1 . 1 . . . . Special Weapon . | . . . . . . . . Impact Weapon . | . . . . . . . . Slashing Weapon . | . . . . . . . . Piercing Weapon . | . . . . . . . . Special Melee Weapon . | . . . . . . . . Unidentified Prototypes 1 | . . . . . . 1 . Parts Lost 23 | . . . 2 . . 15 6 Power 5 | . . . . . . 3 2 Propulsion 7 | . . . 1 . . 5 1 Utility 9 | . . . 1 . . 5 3 Weapon 2 | . . . . . . 2 . Highest Loss Streak 7 | . . . 2 . . 7 4 To Critical Strikes . | . . . . . . . . Average Backups 4 | 2 3 3 3 3 6 6 3 Power . | . 1 1 1 1 . . . Propulsion . | . . . . . . . . Utility 2 | . . . . . 2 3 3 Weapon 2 | 1 2 2 1 2 3 2 . Tool/Special . | . . . . . . . . Unused Backups 12 | . . . 4 . 2 3 3 Power 1 | . . . 1 . . . . Propulsion . | . . . . . . . . Utility 6 | . . . . . . 3 3 Weapon 5 | . . . 3 . 2 . . Tool/Special . | . . . . . . . . Average Slot Usage (%) 82 | . 91 100 90 100 96 73 66 Engine 12 | . 14 14 11 11 18 11 10 Treads 6 | . . . 15 22 17 4 . Leg 6 | . 28 28 6 . . 3 . Wheel 1 | . . . . . . 1 2 Hover 1 | . . . . . . 2 . Device 17 | . . . 21 33 27 19 14 Storage 7 | . 14 14 11 11 9 4 . Hackware 1 | . . . . . . 1 12 Protection 6 | . 9 14 3 . 6 6 2 Energy Gun 2 | . 12 14 . . . . . Energy Cannon 8 | . . . 20 22 18 7 . Ballistic Gun 6 | . . . . . . 10 18 Launcher 2 | . 12 14 . . . . . Peak Build Rating 39 | 4 9 9 15 15 28 39 39 Average Rating 22 | 3 7 9 12 14 23 29 26 On Entrance 14 | . 4 9 9 13 15 26 39 Avg Prop Armor Cover (%) 21 | . . . 21 . . . . Naked Turns 25 | . . . . . . 25 . Heaviest Build 71 | 8 14 14 30 28 71 71 30 Greatest Support 46 | 20 20 20 46 46 46 46 28 Greatest Overweight (x) 8 | . . . 8 . 2 7 7 Average Overweight (x) . | . . . . . . 1 3 Largest Inventory Capacity 15 | 8 8 8 10 10 15 15 5 Average Capacity 9 | 6 8 8 9 10 12 9 5 Most Carried 14 | 4 4 3 6 5 10 14 4 Average Carried 5 | 2 3 3 3 4 7 6 3 Final Capacity 15 | 8 8 8 10 10 15 5 5 Final Carried 10 | 4 3 3 3 5 10 4 3 Class Distribution -------------------- 56% | Mutant 43% | Scavenger-Mutant Dominant Class ---------------- Mutant | -10/Materials Mutant | -10/Mines Mutant | -9/Materials Mutant | -9/Mines Scavenger-Mutant | -8/Materials Scavenger-Mutant | -8/Garrison Mutant | -8/Materials Resources | -11 -10 -10 -9 -9 -8 -8 -8 ----------- Run | Yrd Mat Min Mat Min Mat Gar Mat Matter Collected 1431 | 203 61 52 223 . 80 671 141 Remotely . | . . . . . . . . Salvage Created 1484 | . 147 52 283 30 67 549 356 Parts 75 | . 11 . 15 3 1 28 17 Haulers Intercepted 1 | . . . . . . . 1 Recyclers Shooed 2 | . 1 . 1 . . . . Parts Field Recycled . | . . . . . . . . Retrieved Matter . | . . . . . . . . Parts Self-Destructed . | . . . . . . . . Prevented . | . . . . . . . . Parts Restored . | . . . . . . . . Kills | -11 -10 -10 -9 -9 -8 -8 -8 ------- Run | Yrd Mat Min Mat Min Mat Gar Mat Combat Hostiles Destroyed 44 | . 7 2 6 2 1 20 6 Guns 14 | . 1 1 . . . 6 6 Cannons 23 | . . . 6 2 1 14 . AOE 7 | . 6 1 . . . . . Classes Destroyed 11 | . 4 . 2 . 1 1 3 Worker 1 | . . . . . . . 1 Builder 1 | . 1 . . . . . . Hauler 1 | . . . . . . . 1 Recycler 1 | . . . 1 . . . . Operator 1 | . . . . . 1 . . Watcher 3 | . 3 . . . . . . Swarmer 20 | . 3 . 3 2 . 12 . Grunt 16 | . 4 2 . . . 6 4 Sentry 6 | . . . 3 . 1 1 1 Programmer 1 | . . . . . . 1 . Heavy 1 | . . . . . . . 1 Best Kill Streak 5 | . 5 2 3 2 1 3 4 Combat Bots Only 4 | . 4 2 3 2 1 3 3 Max Kills in Single Turn 3 | . 3 1 1 1 1 1 2 Gunslinging . | . . . . . . . . Exploded 3 | . 3 1 . . . . . Melee . | . . . . . . . . Uniques/NPCs Destroyed . | . . . . . . . . Combat | -11 -10 -10 -9 -9 -8 -8 -8 -------- Run | Yrd Mat Min Mat Min Mat Gar Mat Hostile Shots Fired 389 | . 11 11 58 19 8 241 41 Missed 94 | . 3 4 16 5 . 55 11 Hits 295 | . 8 7 42 14 8 186 30 Projectile 295 | . 8 7 42 14 8 186 30 Critical Strikes 8 | . . . . 1 . 6 1 Damage Taken 3935 | . 132 147 480 131 132 2221 692 Core 749 | . 46 66 67 12 . 483 75 Absorbed by Shields 46 | . . . . . . 46 . Redirected to Shielding 18 | . . . . . . 18 . Ignored by Resistances 200 | . . . . . . 200 . Core Remaining (%) 78 | 100 . 55 . 80 . . . Volleys Fired 153 | . 13 9 19 5 3 77 27 Largest 2 | . 2 2 2 2 2 2 2 Hottest 160 | . 70 70 136 136 160 160 56 Shots Fired 279 | . 22 11 38 10 6 138 54 Gun 134 | . 13 9 1 . . 57 54 Cannon 133 | . . . 36 10 6 81 . Launcher 12 | . 9 2 1 . . . . Special . | . . . . . . . . Kinetic 112 | . . . 1 . . 57 54 Thermal 155 | . 13 9 36 10 6 81 . Explosive 12 | . 9 2 1 . . . . Electromagnetic . | . . . . . . . . Robot Hit Streak 12 | . 3 4 4 3 4 6 12 Robot Miss Streak 5 | . 1 1 4 3 1 5 4 Penetration Max 1 | . . . . . . . 1 Secondary Targets 2 | . . . . . . . 2 Max Gunslinging Chain 1 | . . . . . . . 1 Shots Hit Robots 136 | . 8 7 17 4 5 58 37 Core Hits 73 | . 20 4 7 2 2 24 14 Critical Kills 1 | . . . . . . 1 . Critical Parts Destroyed . | . . . . . . . . Critical Strikes 1 | . . . . . . 1 . Destroy 1 | . . . . . . 1 . Melee Attacks . | . . . . . . . . Impact . | . . . . . . . . Slashing . | . . . . . . . . Piercing . | . . . . . . . . Sneak Attacks . | . . . . . . . . Combat Hostiles . | . . . . . . . . Follow-up Attacks . | . . . . . . . . Damage Inflicted 3671 | . 566 182 410 102 114 1524 773 Guns 1199 | . 33 55 . . . 338 773 Cannons 1772 | . . . 373 102 114 1183 . Explosions 683 | . 519 127 37 . . . . Melee . | . . . . . . . . Ramming 17 | . 14 . . . . 3 . Kinetic 1111 | . . . . . . 338 773 Thermal 1860 | . 33 55 373 102 114 1183 . Explosive 683 | . 519 127 37 . . . . Electromagnetic . | . . . . . . . . Impact . | . . . . . . . . Slashing . | . . . . . . . . Piercing . | . . . . . . . . Highest Corruption 5 | . 1 1 1 1 . 5 5 Average Corruption 3 | . 1 1 1 1 . 4 5 Corruption Purged . | . . . . . . . . Corruption Blocked . | . . . . . . . . Effects 44 | . 4 . . . . 30 10 Message Errors 7 | . . . . . . 6 1 Matter Fused 14 | . 3 . . . . 9 2 Heat Flow Errors 6 | . . . . . . 5 1 Energy Discharges 3 | . . . . . . 2 1 Data Loss (minor) 4 | . 1 . . . . 2 1 Data Loss (major) 3 | . . . . . . 2 1 Misfires 4 | . . . . . . 3 1 Alerts 2 | . . . . . . 1 1 Weapon Failures 1 | . . . . . . . 1 Overload Shots . | . . . . . . . . Overflow Damage 86 | . . . 9 2 10 65 . Projectiles 78 | . . . 1 2 10 65 . Explosions 8 | . . . 8 . . . . Melee . | . . . . . . . . Knockbacks . | . . . . . . . . Impact . | . . . . . . . . Kinetic . | . . . . . . . . Secondary . | . . . . . . . . Self-Inflicted Damage 144 | . 18 46 . . . 80 . Shots 4 | . 1 2 . . . 1 . Rammed 2 | . . . . . . 2 . Targets Rammed 6 | . 3 . . . . 3 . Kicked 4 | . 3 . . . . 1 . Crushed . | . . . . . . . . Highest Temperature 464 | . 102 79 464 204 123 430 209 Average Temperature 138 | . 28 44 172 105 58 163 45 Received Heat Transfer 1197 | . 66 60 99 9 45 729 189 Effects 19 | . . . 5 . . 14 . Shutdowns 4 | . . . 1 . . 3 . Energy Bleed 3 | . . . 2 . . 1 . Interference 5 | . . . . . . 5 . Matter Decay 3 | . . . . . . 3 . Short Circuit 2 | . . . 2 . . . . Damage (minor) 2 | . . . . . . 2 . Siege Activations . | . . . . . . . . Martial Activations . | . . . . . . . . Shielding Activations . | . . . . . . . . Robots Disrupted . | . . . . . . . . Combat Hostiles . | . . . . . . . . Robots Corrupted . | . . . . . . . . Combat Hostiles . | . . . . . . . . Parts Fried . | . . . . . . . . Impact Corruptions . | . . . . . . . . Robots Melted . | . . . . . . . . Combat Hostiles . | . . . . . . . . Parts Melted 13 | . . 1 2 . 3 7 . Heat Transferred 3512 | . 75 125 666 185 211 2250 . Parts Sabotaged . | . . . . . . . . Parts Stolen . | . . . . . . . . Parts Stripped . | . . . . . . . . Power Chain Reactions . | . . . . . . . . Alert | -11 -10 -10 -9 -9 -8 -8 -8 ------- Run | Yrd Mat Min Mat Min Mat Gar Mat Maximum Alert Level 3 | . . . . . . 3 2 Low Security (%) 54 | 100 100 100 100 100 100 20 . Level 1 16 | . . . . . . 35 . Level 2 22 | . . . . . . 30 100 Level 3 6 | . . . . . . 13 . Level 4 . | . . . . . . . . Level 5 . | . . . . . . . . High Security . | . . . . . . . . Max Security . | . . . . . . . . Peak Influence 1036 | . 198 63 75 90 39 1036 516 Initial 505 | . . . 24 . 27 . 505 Average 247 | . 52 38 14 19 7 419 472 Influence Increases 2273 | . 321 73 183 100 77 1311 208 Destroy 0b10 Robot/C 940 | . 140 40 120 80 40 400 120 Destroy 0b10 Robot/NC 40 | . 20 . 5 . 5 . 10 Destroy Leader 158 | . 36 10 40 10 20 10 32 Allied During Kill 23 | . . . . 10 8 5 . Successful Hack 75 | . 31 . 12 . 4 28 . Disable Machine 60 | . 15 15 . . . . 30 Anti-Garrison Action 800 | . . . . . . 800 . Destroy Structure 132 | . 49 8 6 . . 68 1 Lose Combat Pursuer 45 | . 30 . . . . . 15 Influence Decreases 1800 | . 321 10 246 30 147 275 771 Entered New Map 613 | . . . 39 . 43 . 531 Time Decay 682 | . 171 10 187 30 104 . 180 Lost Part 230 | . . . 20 . . 150 60 Lost Ally 125 | . . . . . . 125 . Purge Threat 150 | . 150 . . . . . . Squads Dispatched 6 | . 1 . 2 . . . 3 Investigation 1 | . 1 . . . . . . Extermination . | . . . . . . . . Reinforcement 4 | . . . 2 . . . 2 Assault . | . . . . . . . . Garrison 1 | . . . . . . . 1 Intercept . | . . . . . . . . Searches Triggered . | . . . . . . . . Construction Impeded . | . . . . . . . . Haulers Reinforced . | . . . . . . . . Active Scanning Responses . | . . . . . . . . Cargo Convoy Interrupts . | . . . . . . . . Stealth | -11 -10 -10 -9 -9 -8 -8 -8 --------- Run | Yrd Mat Min Mat Min Mat Gar Mat Distress Signals 5 | . 1 . 2 . . . 2 Communications Jammed . | . . . . . . . . Distress Signals . | . . . . . . . . Times Spotted 64 | . 9 2 9 4 3 26 11 Peak Tracking Total 6 | . 5 2 3 4 2 6 5 Tactical Retreats 6 | . 1 . 1 . . 2 2 ECM-based Alert Blocks 7 | . . . 3 . . 3 1 Traps | -11 -10 -10 -9 -9 -8 -8 -8 ------- Run | Yrd Mat Min Mat Min Mat Gar Mat Traps Triggered 6 | . 1 . 1 . . 4 . Indirectly . | . . . . . . . . Trap Hack Attempts . | . . . . . . . . Triggered . | . . . . . . . . Disarmed . | . . . . . . . . Reprogrammed . | . . . . . . . . Reused . | . . . . . . . . Traps Extracted . | . . . . . . . . Installed . | . . . . . . . . Triggered . | . . . . . . . . Machines | -11 -10 -10 -9 -9 -8 -8 -8 ---------- Run | Yrd Mat Min Mat Min Mat Gar Mat Machines Disabled 11 | . 1 1 . . . 7 2 Max in Single Turn 1 | . 1 1 . . . 1 1 Garrison Relay 5 | . . . . . . 5 . Phase Generator 1 | . . . . . . 1 . Machines Repaired . | . . . . . . . . Machines Dismantled . | . . . . . . . . Machines Sabotaged . | . . . . . . . . Overloaded Fab Kills . | . . . . . . . . Hacking | -11 -10 -10 -9 -9 -8 -8 -8 --------- Run | Yrd Mat Min Mat Min Mat Gar Mat Machines Accessed 12 | . 5 . 1 1 2 3 . Terminals 7 | . 3 . . . 1 3 . Fabricators . | . . . . . . . . Repair Stations 1 | . 1 . . . . . . Recycling Units 2 | . 1 . 1 . . . . Scanalyzers . | . . . . . . . . Garrison Access 1 | . . . . . 1 . . Total Hacks 25 | . 11 . 1 1 7 5 . Successful 13 | . 6 . 1 1 3 2 . Failed 12 | . 5 . . . 4 3 . Catastrophic 2 | . 1 . . . . 1 . Database Lockouts . | . . . . . . . . Manual 13 | . 7 . 1 . 3 2 . Terminals 17 | . 7 . . . 5 5 . Fabricators . | . . . . . . . . Repair Stations 3 | . 3 . . . . . . Recycling Units 2 | . 1 . 1 . . . . Scanalyzers . | . . . . . . . . Garrison Access 2 | . . . . . 2 . . Terminal Hacks 5 | . 1 . . 1 1 2 . Open Door 1 | . . . . 1 . . . Unreport Threat 1 | . 1 . . . . . . Dispatch Records 1 | . . . . . 1 . . Garrison Registry 1 | . . . . . . 1 . Patrol Navigation 1 | . . . . . . 1 . Fabricator Hacks . | . . . . . . . . Repair Station Hacks 2 | . 2 . . . . . . Scan Component 1 | . 1 . . . . . . Refit 1 | . 1 . . . . . . Recycling Unit Hacks . | . . . . . . . . Scanalyzer . | . . . . . . . . Garrison Access Hacks 1 | . . . . . 1 . . Unlock Access 1 | . . . . . 1 . . Unauthorized Hacks 5 | . 3 . 1 . 1 . . Terminals 3 | . 2 . . . 1 . . Track 3 | . 2 . . . 1 . . Fabricators . | . . . . . . . . Repair Stations . | . . . . . . . . Recycling Units 2 | . 1 . 1 . . . . Reject 2 | . 1 . 1 . . . . Scanalyzers . | . . . . . . . . Garrison Access . | . . . . . . . . Data Cores Recovered 1 | . . . . . 1 . . Used . | . . . . . . . . Hacking Detections 7 | . 3 . 1 . 1 2 . Full Trace Events 3 | . 2 . . . . 1 . Feedback Events . | . . . . . . . . Feedback Blocked . | . . . . . . . . Robot Schematics Acquired . | . . . . . . . . Robots Built . | . . . . . . . . Authchips . | . . . . . . . . Time . | . . . . . . . . Total Robot Build Rating . | . . . . . . . . Part Schematics Acquired . | . . . . . . . . Parts Built . | . . . . . . . . Authchips . | . . . . . . . . Time . | . . . . . . . . Total Part Build Rating . | . . . . . . . . Part Studies Acquired . | . . . . . . . . Parts Repaired . | . . . . . . . . Time . | . . . . . . . . Parts Recycled . | . . . . . . . . Recycled Matter . | . . . . . . . . Retrieved Matter . | . . . . . . . . Retrieved Components . | . . . . . . . . Parts Scanalyzed . | . . . . . . . . Part Schematics Acquired . | . . . . . . . . Parts Damaged . | . . . . . . . . Bothacking | -11 -10 -10 -9 -9 -8 -8 -8 ------------ Run | Yrd Mat Min Mat Min Mat Gar Mat Used RIF Installer 1 | . . . . . . 1 . Robots Hacked . | . . . . . . . . Non-combat . | . . . . . . . . Combat . | . . . . . . . . Robot Hacks Applied . | . . . . . . . . Relay Couplers Released 18 | . . . . . . 18 . Machine Destruction 18 | . . . . . . 18 . Attached 2 | . . . . . . 1 1 Fabnet Peak Effective % . | . . . . . . . . Robots Rewired . | . . . . . . . . Allies Hacked . | . . . . . . . . Hacks Repelled . | . . . . . . . . Allies | -11 -10 -10 -9 -9 -8 -8 -8 -------- Run | Yrd Mat Min Mat Min Mat Gar Mat Total Allies 2 | . . . . 2 . . . Largest Group 2 | . . . . 2 2 2 . Highest-Rated Group 51 | . . . . 51 51 51 . Highest-Rated Ally 31 | . . . . 31 31 31 . Total Orders 5 | . . . . . . 4 1 ROAM 1 | . . . . . . 1 . FOLLOW 1 | . . . . . . 1 . EXPLORE 3 | . . . . . . 2 1 Ally Attacks 30 | . . . . 6 7 14 3 Total Damage 271 | . . . . 105 145 21 . Kills 3 | . . . . 2 1 . . Allies Corrupted . | . . . . . . . . Allies Melted . | . . . . . . . . Intel | -11 -10 -10 -9 -9 -8 -8 -8 ------- Run | Yrd Mat Min Mat Min Mat Gar Mat Active Infowar (turns) 1924 | . . . 506 200 524 564 130 ECM 1924 | . . . 506 200 524 564 130 Robot Analysis Total . | . . . . . . . . Derelict Logs Recovered 1 | . . . . 1 . . . Drone Launches 16 | . . . . . . 16 . Drone Recoveries 1 | . . . . . . . 1 Exploration | -11 -10 -10 -9 -9 -8 -8 -8 ------------- Run | Yrd Mat Min Mat Min Mat Gar Mat Turns Passed 5091 | 51 768 32 698 200 524 2439 379 Spaces Moved 2376 | 37 536 11 299 116 197 1072 108 Core 133 | 4 . . 13 . . 58 58 Treads 667 | . . . 173 116 196 182 . Legs 890 | 33 536 11 113 . 1 196 . Wheels 382 | . . . . . . 332 50 Hover 304 | . . . . . . 304 . Flight . | . . . . . . . . Fastest Speed 50 | 50 120 120 120 160 160 50 100 Average Speed 162 | 112 120 120 164 160 211 168 248 Slowest Speed 450 | 120 120 120 450 160 270 400 400 Overloaded Moves . | . . . . . . . . Propulsion Burnouts . | . . . . . . . . Robots Hopped . | . . . . . . . . Potential Cave-ins . | . . . . . . . . Cave-ins Triggered . | . . . . . . . . Exploration Rate (%) 32 | 3 66 6 26 30 12 99 14 Regions Visited 7 Branch Regions 2 Pre-discovered Areas . | . . . . . . . . Known Exits Taken 1 | . . . . . 1 . . Unknown Exits Taken 5 | 1 1 1 1 1 . . . Scrap Searched . | . . . . . . . . Spaces Dug 2 | . . . . . . 2 . Terrain Destroyed 145 | . 53 8 5 . . 74 5 Melee . | . . . . . . . . Projectile 10 | . . . . . . 5 5 AOE 134 | . 53 8 5 . . 68 . Terrain Rammed . | . . . . . . . . Walls Destroyed . | . . . . . . . . Machines Disabled . | . . . . . . . . Actions | -11 -10 -10 -9 -9 -8 -8 -8 --------- Run | Yrd Mat Min Mat Min Mat Gar Mat Total 3308 | 44 637 19 467 121 298 1558 164 Wait 639 | . 82 . 115 . 71 346 25 Move 2368 | 36 535 10 298 115 196 1070 108 Hop . | . . . . . . . . Pick Up 28 | 4 . . 6 1 8 9 . Fast Attach 39 | 4 1 . 9 . 3 19 3 Attach 15 | . 1 . 2 . 1 10 1 Detach . | . . . . . . . . Swap 16 | . 1 . 4 . 7 4 . Drop 32 | . 1 . 14 . 9 8 . Fire 153 | . 13 9 19 5 3 77 27 Melee . | . . . . . . . . Ram 2 | . . . . . . 2 . Kick 4 | . 3 . . . . 1 . Crush . | . . . . . . . . Escape Stasis 12 | . . . . . . 12 . Rewire . | . . . . . . . . Trap . | . . . . . . . . Miscellaneous . | . . . . . . . . Route ------- -11/Scrapyard -10/Materials (discovered 3 exits: *Mat / [*Min x2]) -10/Mines -9/Materials -9/Mines -8/Materials (discovered 2 exits: *Sto / Gar) -8/Garrison (discovered 3 exits: [*Mat x3]) -8/Materials History --------- Turn | Location | Event 6 | -11/Scrapyard | Discovered new exit (range 15) 52 | -11/Scrapyard | Entered Materials 265 | -10/Materials | Discovered new exit (range 8) 300 | -10/Materials | Build established: Mutant 398 | -10/Materials | Discovered new exit (range 14) 456 | -10/Materials | Discovered new exit (range 10) 820 | -10/Materials | Entered Mines 820 | -10/Mines | Discovered new exit (range 9) 848 | -10/Mines | Met a Derelict bent on vengeance 852 | -10/Mines | Entered Materials 852 | -9/Materials | Evolved 2 slots: Utility x2 1525 | -9/Materials | Discovered new exit (range 16) 1550 | -9/Materials | Entered Mines 1564 | -9/Mines | Found the Drone Emporium 1598 | -9/Mines | Found Prototype Device 1736 | -9/Mines | Discovered new exit (range 10) 1750 | -9/Mines | Entered Materials 1750 | -8/Materials | Accompanied by 2 allies 1750 | -8/Materials | Evolved 2 slots: Power x1, Utility x1 1751 | -8/Materials | Identified exit to Storage 1755 | -8/Materials | Led the pair of lost Derelicts to an unsafe place 2038 | -8/Materials | Build established: Scavenger-Mutant 2269 | -8/Materials | Identified exit to Garrison 2274 | -8/Materials | Entered Garrison 2274 | -8/Garrison | Accompanied by 2 allies 2352 | -8/Garrison | Triggered checkpoint 2354 | -8/Garrison | Triggered checkpoint 2412 | -8/Garrison | Triggered checkpoint 2454 | -8/Garrison | Garrison Relay disabled 2796 | -8/Garrison | Triggered checkpoint 3122 | -8/Garrison | Triggered checkpoint 3265 | -8/Garrison | Discovered new exit (range 9) 3367 | -8/Garrison | Garrison Relay disabled 3384 | -8/Garrison | Core integrity fell below 50% 3387 | -8/Garrison | Released all parts (4) 3401 | -8/Garrison | Core integrity fell below 20% 3411 | -8/Garrison | Lost 7 parts (2p2n1u2w) 3414 | -8/Garrison | Identified Bomb Drone Bay 3417 | -8/Garrison | Garrison Relay disabled 3450 | -8/Garrison | Lost 3 allies 3539 | -8/Garrison | Discovered new exit (range 87) 3546 | -8/Garrison | Triggered checkpoint 3551 | -8/Garrison | Discovered new exit (range 37) 3662 | -8/Garrison | Build established: Mutant 3666 | -8/Garrison | Triggered checkpoint 3821 | -8/Garrison | Garrison Relay disabled 3864 | -8/Garrison | Triggered checkpoint 3948 | -8/Garrison | Phase Generator disabled 4142 | -8/Garrison | Garrison Relay disabled 4167 | -8/Garrison | Discovered new exit (range 60) 4167 | -8/Garrison | Discovered new exit (range 49) 4167 | -8/Garrison | Discovered new exit (range 37) 4276 | -8/Garrison | Build established: Scavenger-Mutant 4319 | -8/Garrison | Installed Relay Interface Framework 4713 | -8/Garrison | Entered Materials 4713 | -8/Materials | Accompanied by 4 allies 4866 | -8/Materials | Lost 4 parts (1p1n2u) 5056 | -8/Materials | Garrison activated, responded to threat 5092 | -8/Materials | Destroyed by G-47 Trooper with Particle Gun Last Messages --------------- ALERT: Hostiles spotted, dispatching reinforcements to Terminal M005. System corrupted: Substantial component data lost. R-06 Scavenger collects Aluminum Leg. K-01 Serf collects debris. R-06 Scavenger collects Ion Engine. Acquired Lgt. Treads. R-06 Scavenger collects Heat Sink. Slug penetrates G-47 Trooper. Slug penetrates Wall. R-06 Scavenger collects Wheel. Slug penetrates G-47 Trooper. Terminal disabled. Lgt. Nuclear Core destroyed. G-47 Trooper destroyed. Switching to secondary target: G-47 Trooper. Slug penetrates Wall. R-06 Scavenger collects Prototype Flight Unit. [Achievement: Just Browsing] Map ----- +----------------------------------------------------+ | ?????????????????????????????????????????????????? | | ?????????????????????????????????????????????????? | | ?????????????????????????????????????????????????? | | ?????????????????????????????????????????????????? | | ?????????????????????????????????????????????????? | | ?????????????????????????????????????????????????? | | ?????????????????????????????????????????????????? | | ?????????????????????????????????????????????????? | | ?????????????????????????????????????????????????? | | ?????????????????????????????????????????????????? | | ?????????????????????????????????????????????????? | | ?????????????????????????????????????????????????? | | ????????????????????????????###?##???????????????? | | ???????????????????????????? #???????????????? | | ???????????????????????? ??? # ############### | | ????????????????????????? ?? # | | ?????????????????????????? ?? + | | ??????????????????????????? ? # | | ???????????????????????????? ? ?## #######+##### | | ????????????????????????????? ??# #?# # | | ?????????????????????????????? ??# #?# """ """ # | | ??????????????????????????????#+#??# #?# """ """ # | | ????????????????????????????### #### #?# """ """ # | | ????????????????????????????# ## #?# # | | ?????????????????# ##########* ## #?# # | | ?????????? % % r [@*=g[ ### # | | ?????????????????############g g ## + # | | ????????????????????????????# ## #####+####### | | ????????????????????????????###+#### #???????????? | | ???????????????????????????????????# #???????????? | | ???????????????????????????????????# #???????????? | | ???????????????????????????????????# #???????????? | | ???????????????????????????????????+ ???????????? | | ???????????????????????????????????# ???????????? | | ???????????????????????????????????? ???????????? | | ???????????????????????????????????? ???????????? | | ???????????????????????????????????? ???????????? | | ???????????????????????????????????? ???????????? | | ???????????????????????????????????? ???????????? | | ???????????????????????????????????? ???????????? | | ???????????????????????????????????? ???????????? | | ?????????????????????????????????????????????????? | | ?????????????????????????????????????????????????? | | ?????????????????????????????????????????????????? | | ?????????????????????????????????????????????????? | | ?????????????????????????????????????????????????? | | ?????????????????????????????????????????????????? | | ?????????????????????????????????????????????????? | | ?????????????????????????????????????????????????? | | ?????????????????????????????????????????????????? | +----------------------------------------------------+ Best States ------------- Heat Dissipation 45 Energy Generation 24 Energy Capacity 430 Matter Stores 300 Matter Capacity 300 Sight Range 16 Terrain Scan Density 10 ECM Strength 1 Additional Mass Support 6 Armor Coverage 225 Resistance: KI 30 Power Shielding 33 Evasion (%) 55 Recoil Reduction 2 Offensive Hacking 10 Relay Coupler Types 2 Relay Coupler Value 33 Authchip Count 2 Item Schematics ----------------- None Robot Schematics ------------------ None Fabricated ------------ Nothing Repaired ---------- Nothing Studied --------- None Alien Tech Used ----------------- None Achievements -------------- Join The Dark Side Just Browsing Release The Drones! Challenges ------------ None Game ------ Seed AlloyArmorTether Manual? 0 Play Time 00:38:46 Cumulative 28.9 hours Start 2026.04.26 @ 17:22:21 End 2026.04.26 @ 17:59:46 Sessions 1 Manual Loads 0 Difficulty Rogue Special Mode None Game No. 52 Rogue 52 Adventurer 0 Explorer 0 Win Type - Total 0 Types 0/0/0/0/0/0/0/0/0/0 Lore% 24 Gallery% 25 Achievement% 23 Wizard Run 0 Options --------- Layout 1 ASCII 0 Keyboard 0 Movement Mouse Keybinds 0 Fullscreen 1 Font 32/SmallcapsGlow Map View 50x35 Zoom Use 0% Tactical HUD 0 Map Filters NONE Filters NONE Steam 1 RUN: 09355047-229a-47ae-91f7-1e02ff755cf1